[Event "Titled Tuesday Blitz January 31 Late 2023"]
[White "Paveto, Kevin"]
[Black "Sanal, Vahap"]
[WhiteFideId "173444"]
[BlackFideId "6300545"]
[WhiteElo "2427"]
[BlackElo "2600"]
[Result "0-1"]
[Round "03"]
[TimeControl "180+2"]
[Date "2023.01.31"]
[WhiteClock "0:00:14"]
[BlackClock "0:00:07"]

1. e4 {[%clk 0:03:00]}  c5 {[%clk 0:02:53]} 2. Nf3 {[%clk 0:03:00]}  e6 {[%clk 0:02:52]} 3. d4 {[%clk 0:03:00]}  cxd4 {[%clk 0:02:53]} 4. Nxd4 {[%clk 0:03:01]}  a6 {[%clk 0:02:53]} 5. c4 {[%clk 0:03:01]}  Nf6 {[%clk 0:02:53]} 6. Nc3 {[%clk 0:03:02]}  d6 {[%clk 0:02:54]} 7. Be2 {[%clk 0:03:00]}  Be7 {[%clk 0:02:54]} 8. O-O {[%clk 0:03:01]}  b6 {[%clk 0:02:55]} 9. f4 {[%clk 0:03:00]}  Qc7 {[%clk 0:02:53]} 10. b4 {[%clk 0:02:57]}  Nbd7 {[%clk 0:02:50]} 11. Bb2 {[%clk 0:02:54]}  O-O {[%clk 0:02:50]} 12. Rc1 {[%clk 0:02:54]}  Re8 {[%clk 0:02:50]} 13. Qd3 {[%clk 0:02:51]}  Bb7 {[%clk 0:02:49]} 14. Kh1 {[%clk 0:02:50]}  Rac8 {[%clk 0:02:50]} 15. Qg3 {[%clk 0:02:43]}  Bf8 {[%clk 0:02:44]} 16. Bd3 {[%clk 0:02:42]}  Qb8 {[%clk 0:02:43]} 17. f5 {[%clk 0:02:34]}  e5 {[%clk 0:02:36]} 18. Nc2 {[%clk 0:02:14]}  Qa8 {[%clk 0:02:34]} 19. Rfe1 {[%clk 0:02:11]}  Red8 {[%clk 0:02:03]} 20. Qf3 {[%clk 0:02:03]}  b5 {[%clk 0:02:01]} 21. cxb5 {[%clk 0:02:00]}  axb5 {[%clk 0:02:01]} 22. Ne3 {[%clk 0:02:00]}  Rxc3 {[%clk 0:01:55]} 23. Bxc3 {[%clk 0:01:56]}  Nxe4 {[%clk 0:01:56]} 24. Bxe4 {[%clk 0:01:55]}  Bxe4 {[%clk 0:01:55]} 25. Qg3 {[%clk 0:01:55]}  Nf6 {[%clk 0:01:53]} 26. Re2 {[%clk 0:01:48]}  Nh5 {[%clk 0:01:48]} 27. Qf2 {[%clk 0:01:40]}  Nf4 {[%clk 0:01:47]} 28. Rd2 {[%clk 0:01:29]}  Nd3 {[%clk 0:01:45]} 29. Rxd3 {[%clk 0:01:29]}  Bxd3 {[%clk 0:01:46]} 30. Rd1 {[%clk 0:01:29]}  Be4 {[%clk 0:01:45]} 31. Qd2 {[%clk 0:01:25]}  Rc8 {[%clk 0:01:41]} 32. f6 {[%clk 0:01:19]}  g6 {[%clk 0:01:25]} 33. Ng4 {[%clk 0:01:19]}  Bxg2+ {[%clk 0:01:21]} 34. Qxg2 {[%clk 0:01:19]}  Qxg2+ {[%clk 0:01:20]} 35. Kxg2 {[%clk 0:01:20]}  Rxc3 {[%clk 0:01:21]} 36. Rd5 {[%clk 0:01:19]}  Rc2+ {[%clk 0:01:12]} 37. Kf3 {[%clk 0:01:19]}  h5 {[%clk 0:01:05]} 38. Nf2 {[%clk 0:01:17]}  Rxa2 {[%clk 0:01:02]} 39. Rxb5 {[%clk 0:01:17]}  Ra3+ {[%clk 0:01:00]} 40. Kg2 {[%clk 0:01:15]}  d5 {[%clk 0:00:50]} 41. Rxd5 {[%clk 0:01:04]}  Bxb4 {[%clk 0:00:50]} 42. Rd8+ {[%clk 0:01:04]}  Kh7 {[%clk 0:00:49]} 43. Rd7 {[%clk 0:01:01]}  Ra2 {[%clk 0:00:43]} 44. Rxf7+ {[%clk 0:00:58]}  Kh6 {[%clk 0:00:43]} 45. Kf3 {[%clk 0:00:56]}  Kg5 {[%clk 0:00:40]} 46. Ne4+ {[%clk 0:00:55]}  Kf5 {[%clk 0:00:40]} 47. Ng3+ {[%clk 0:00:37]}  Ke6 {[%clk 0:00:40]} 48. Rb7 {[%clk 0:00:38]}  Ra3+ {[%clk 0:00:37]} 49. Kg2 {[%clk 0:00:37]}  Ra2+ {[%clk 0:00:31]} 50. Kf3 {[%clk 0:00:37]}  Ra3+ {[%clk 0:00:29]} 51. Kg2 {[%clk 0:00:38]}  Bf8 {[%clk 0:00:30]} 52. Ne4 {[%clk 0:00:30]}  Kf5 {[%clk 0:00:30]} 53. Ng3+ {[%clk 0:00:26]}  Kxf6 {[%clk 0:00:29]} 54. Rb6+ {[%clk 0:00:27]}  Kf7 {[%clk 0:00:28]} 55. Ne4 {[%clk 0:00:27]}  Be7 {[%clk 0:00:28]} 56. Rb7 {[%clk 0:00:27]}  Ke6 {[%clk 0:00:27]} 57. Rb6+ {[%clk 0:00:26]}  Kf7 {[%clk 0:00:27]} 58. Rb7 {[%clk 0:00:27]}  Re3 {[%clk 0:00:22]} 59. Nd6+ {[%clk 0:00:27]}  Ke6 {[%clk 0:00:22]} 60. Nc4 {[%clk 0:00:28]}  Rc3 {[%clk 0:00:19]} 61. Nxe5 {[%clk 0:00:25]}  Rc2+ {[%clk 0:00:18]} 62. Kh3 {[%clk 0:00:26]}  Bd6 {[%clk 0:00:17]} 63. Nf3 {[%clk 0:00:25]}  Ra2 {[%clk 0:00:09]} 64. Rb3 {[%clk 0:00:20]}  Kf5 {[%clk 0:00:07]} 65. Rb6 {[%clk 0:00:19]}  Bc7 {[%clk 0:00:06]} 66. Nh4+ {[%clk 0:00:18]}  Ke4 {[%clk 0:00:04]} 67. Rb4+ {[%clk 0:00:18]}  Kd5 {[%clk 0:00:02]} 68. Nf3 {[%clk 0:00:18]}  Kc5 {[%clk 0:00:01]} 69. Re4 {[%clk 0:00:18]}  g5 {[%clk 0:00:02]} 70. Ne5 {[%clk 0:00:10]}  g4+ {[%clk 0:00:02]} 71. Kh4 {[%clk 0:00:10]}  Kd5 {[%clk 0:00:02]} 72. Re1 {[%clk 0:00:10]}  Rxh2+ {[%clk 0:00:02]} 73. Kg5 {[%clk 0:00:09]}  Bxe5 {[%clk 0:00:03]} 74. Rd1+ {[%clk 0:00:09]}  Ke4 {[%clk 0:00:03]} 75. Re1+ {[%clk 0:00:10]}  Kd5 {[%clk 0:00:03]} 76. Rd1+ {[%clk 0:00:10]}  Ke6 {[%clk 0:00:04]} 77. Re1 {[%clk 0:00:11]}  g3 {[%clk 0:00:05]} 78. Rf1 {[%clk 0:00:11]}  g2 {[%clk 0:00:05]} 79. Rg1 {[%clk 0:00:12]}  h4 {[%clk 0:00:05]} 80. Kg4 {[%clk 0:00:12]}  h3 {[%clk 0:00:06]} 81. Kf3 {[%clk 0:00:12]}  Rh1 {[%clk 0:00:07]} 82. Rxg2 {[%clk 0:00:13]}  hxg2 {[%clk 0:00:07]} 83. Kxg2 {[%clk 0:00:14]}  Rh4 {[%clk 0:00:07]} 0-1


[Site "https://www.chess.com"]

[Event "Titled Tuesday Blitz January 31 Late 2023"]
[White "Kozak, Adam"]
[Black "Santos Ruiz, Miguel"]
[WhiteFideId "753246"]
[BlackFideId "22291482"]
[WhiteElo "2572"]
[BlackElo "2590"]
[Result "1-0"]
[Round "03"]
[TimeControl "180+2"]
[Date "2023.01.31"]
[WhiteClock "0:00:45"]
[BlackClock "0:00:12"]

1. c4 {[%clk 0:02:59]}  e5 {[%clk 0:02:59]} 2. Nc3 {[%clk 0:02:56]}  Nf6 {[%clk 0:02:58]} 3. Nf3 {[%clk 0:02:56]}  Nc6 {[%clk 0:02:58]} 4. e4 {[%clk 0:02:56]}  Bc5 {[%clk 0:02:47]} 5. Nxe5 {[%clk 0:02:56]}  Nxe5 {[%clk 0:02:48]} 6. d4 {[%clk 0:02:56]}  Bb4 {[%clk 0:02:49]} 7. dxe5 {[%clk 0:02:56]}  Nxe4 {[%clk 0:02:49]} 8. Qf3 {[%clk 0:02:56]}  Nxc3 {[%clk 0:02:50]} 9. bxc3 {[%clk 0:02:57]}  Be7 {[%clk 0:02:43]} 10. Bf4 {[%clk 0:02:52]}  O-O {[%clk 0:02:34]} 11. Bd3 {[%clk 0:02:47]}  d6 {[%clk 0:02:33]} 12. Rd1 {[%clk 0:02:45]}  Bg5 {[%clk 0:01:59]} 13. O-O {[%clk 0:02:39]}  Bxf4 {[%clk 0:01:54]} 14. Qxf4 {[%clk 0:02:40]}  Be6 {[%clk 0:01:39]} 15. exd6 {[%clk 0:02:24]}  cxd6 {[%clk 0:01:39]} 16. c5 {[%clk 0:02:24]}  d5 {[%clk 0:01:33]} 17. c4 {[%clk 0:02:24]}  d4 {[%clk 0:01:26]} 18. Qe4 {[%clk 0:02:23]}  g6 {[%clk 0:01:22]} 19. Qxb7 {[%clk 0:02:23]}  Qc8 {[%clk 0:01:16]} 20. c6 {[%clk 0:02:18]}  Rb8 {[%clk 0:01:06]} 21. Qxa7 {[%clk 0:02:10]}  Qxc6 {[%clk 0:01:04]} 22. Qxd4 {[%clk 0:02:10]}  Rfd8 {[%clk 0:01:01]} 23. Qf4 {[%clk 0:02:06]}  Qc5 {[%clk 0:00:58]} 24. h4 {[%clk 0:01:57]}  Kg7 {[%clk 0:00:55]} 25. Rfe1 {[%clk 0:01:52]}  Rb2 {[%clk 0:00:51]} 26. a4 {[%clk 0:01:29]}  Rd4 {[%clk 0:00:42]} 27. Qe3 {[%clk 0:01:28]}  Rb3 {[%clk 0:00:34]} 28. h5 {[%clk 0:01:23]}  gxh5 {[%clk 0:00:24]} 29. a5 {[%clk 0:01:13]}  Bg4 {[%clk 0:00:24]} 30. f3 {[%clk 0:01:01]}  Be6 {[%clk 0:00:15]} 31. Qf2 {[%clk 0:01:01]}  h4 {[%clk 0:00:14]} 32. Bc2 {[%clk 0:00:53]}  Rxd1 {[%clk 0:00:13]} 33. Qxc5 {[%clk 0:00:54]}  Rxe1+ {[%clk 0:00:13]} 34. Kf2 {[%clk 0:00:54]}  Rbe3 {[%clk 0:00:13]} 35. Qxe3 {[%clk 0:00:44]}  Rxe3 {[%clk 0:00:12]} 36. Kxe3 {[%clk 0:00:45]}  Bxc4 {[%clk 0:00:13]} 37. Bd3 {[%clk 0:00:45]}  Bd5 {[%clk 0:00:12]} 38. a6 {[%clk 0:00:45]} 1-0


[Site "https://www.chess.com"]

[Event "Titled Tuesday Blitz January 31 Late 2023"]
[White "Rasulov, Vugar"]
[Black "Jaracz, Pawel"]
[WhiteFideId "13402390"]
[BlackFideId "1102222"]
[WhiteElo "2523"]
[BlackElo "2467"]
[Result "1-0"]
[Round "03"]
[TimeControl "180+2"]
[Date "2023.01.31"]
[WhiteClock "0:00:05"]
[BlackClock "0:00:04"]

1. Nf3 {[%clk 0:03:00]}  d5 {[%clk 0:02:59]} 2. c4 {[%clk 0:03:00]}  c6 {[%clk 0:02:59]} 3. e3 {[%clk 0:02:59]}  Nf6 {[%clk 0:02:59]} 4. Nc3 {[%clk 0:03:00]}  e6 {[%clk 0:02:58]} 5. d4 {[%clk 0:03:00]}  Nbd7 {[%clk 0:02:55]} 6. Bd3 {[%clk 0:03:00]}  dxc4 {[%clk 0:02:55]} 7. Bxc4 {[%clk 0:03:01]}  b5 {[%clk 0:02:55]} 8. Bd3 {[%clk 0:03:02]}  Bb7 {[%clk 0:02:55]} 9. e4 {[%clk 0:02:59]}  b4 {[%clk 0:02:52]} 10. Na4 {[%clk 0:02:59]}  c5 {[%clk 0:02:52]} 11. e5 {[%clk 0:02:59]}  Nd5 {[%clk 0:02:51]} 12. O-O {[%clk 0:02:59]}  cxd4 {[%clk 0:02:48]} 13. Re1 {[%clk 0:02:59]}  g6 {[%clk 0:02:48]} 14. Bg5 {[%clk 0:02:53]}  Be7 {[%clk 0:02:26]} 15. Bh6 {[%clk 0:02:42]}  N5b6 {[%clk 0:02:01]} 16. Bb5 {[%clk 0:02:26]}  a6 {[%clk 0:01:49]} 17. Nxb6 {[%clk 0:02:17]}  Qxb6 {[%clk 0:01:46]} 18. Bxd7+ {[%clk 0:02:12]}  Kxd7 {[%clk 0:01:46]} 19. Nxd4 {[%clk 0:02:13]}  Bd5 {[%clk 0:01:46]} 20. Rc1 {[%clk 0:02:09]}  Rhc8 {[%clk 0:01:45]} 21. Be3 {[%clk 0:01:55]}  Qb7 {[%clk 0:01:45]} 22. Qa4+ {[%clk 0:01:54]}  Kd8 {[%clk 0:01:39]} 23. Nb3 {[%clk 0:01:49]}  Bc6 {[%clk 0:01:27]} 24. Na5 {[%clk 0:01:30]}  Bxa4 {[%clk 0:01:25]} 25. Nxb7+ {[%clk 0:01:31]}  Kd7 {[%clk 0:01:21]} 26. Bc5 {[%clk 0:01:10]}  Rab8 {[%clk 0:01:21]} 27. Nd6 {[%clk 0:00:48]}  Bxd6 {[%clk 0:01:15]} 28. Bxd6 {[%clk 0:00:49]}  Rxc1 {[%clk 0:01:15]} 29. Rxc1 {[%clk 0:00:49]}  Rb7 {[%clk 0:01:09]} 30. b3 {[%clk 0:00:49]}  Bc6 {[%clk 0:01:09]} 31. f3 {[%clk 0:00:41]}  Rb5 {[%clk 0:01:03]} 32. Kf2 {[%clk 0:00:40]}  Rd5 {[%clk 0:01:01]} 33. Ke3 {[%clk 0:00:30]}  a5 {[%clk 0:00:56]} 34. Rc5 {[%clk 0:00:22]}  f6 {[%clk 0:00:27]} 35. Rxd5 {[%clk 0:00:15]}  Bxd5 {[%clk 0:00:27]} 36. Kd4 {[%clk 0:00:15]}  Kc6 {[%clk 0:00:25]} 37. Be7 {[%clk 0:00:12]}  f5 {[%clk 0:00:22]} 38. Ke3 {[%clk 0:00:07]}  Kb5 {[%clk 0:00:22]} 39. Kf4 {[%clk 0:00:05]}  a4 {[%clk 0:00:21]} 40. bxa4+ {[%clk 0:00:02]}  Kxa4 {[%clk 0:00:21]} 41. Kg5 {[%clk 0:00:03]}  Bxa2 {[%clk 0:00:20]} 42. Bc5 {[%clk 0:00:03]}  Bc4 {[%clk 0:00:16]} 43. Kh6 {[%clk 0:00:03]}  Bf1 {[%clk 0:00:16]} 44. g3 {[%clk 0:00:03]}  Be2 {[%clk 0:00:17]} 45. f4 {[%clk 0:00:03]}  b3 {[%clk 0:00:16]} 46. Bd4 {[%clk 0:00:03]}  Kb4 {[%clk 0:00:12]} 47. Kxh7 {[%clk 0:00:03]}  Kc4 {[%clk 0:00:12]} 48. Bb2 {[%clk 0:00:03]}  Bh5 {[%clk 0:00:12]} 49. Kg7 {[%clk 0:00:04]}  Kd5 {[%clk 0:00:12]} 50. Kf6 {[%clk 0:00:05]}  Ke4 {[%clk 0:00:06]} 51. Kxe6 {[%clk 0:00:05]}  Be2 {[%clk 0:00:04]} 52. Kf6 {[%clk 0:00:05]} 1-0


[Site "https://www.chess.com"]

[Event "Titled Tuesday Blitz January 31 Late 2023"]
[White "Babazada, Khazar"]
[Black "Corrales Jimenez, Fidel"]
[WhiteFideId "13413554"]
[BlackFideId "3506690"]
[WhiteElo "2474"]
[BlackElo "2489"]
[Result "1/2-1/2"]
[Round "03"]
[TimeControl "180+2"]
[Date "2023.01.31"]
[WhiteClock "0:00:04"]
[BlackClock "0:00:52"]

1. Nf3 {[%clk 0:03:00]}  Nf6 {[%clk 0:02:50]} 2. g3 {[%clk 0:02:58]}  g6 {[%clk 0:02:50]} 3. Bg2 {[%clk 0:02:58]}  Bg7 {[%clk 0:02:51]} 4. O-O {[%clk 0:02:59]}  O-O {[%clk 0:02:51]} 5. c4 {[%clk 0:02:59]}  c6 {[%clk 0:02:51]} 6. d4 {[%clk 0:02:57]}  d5 {[%clk 0:02:52]} 7. Qb3 {[%clk 0:02:54]}  a5 {[%clk 0:02:49]} 8. Nc3 {[%clk 0:02:51]}  a4 {[%clk 0:02:49]} 9. Qd1 {[%clk 0:02:49]}  dxc4 {[%clk 0:02:49]} 10. Ne5 {[%clk 0:02:49]}  a3 {[%clk 0:02:44]} 11. bxa3 {[%clk 0:02:38]}  Nd5 {[%clk 0:02:44]} 12. Ne4 {[%clk 0:02:31]}  b5 {[%clk 0:02:37]} 13. e3 {[%clk 0:02:21]}  Bf5 {[%clk 0:02:34]} 14. Nc5 {[%clk 0:02:18]}  Bxe5 {[%clk 0:02:33]} 15. dxe5 {[%clk 0:02:17]}  Nc3 {[%clk 0:02:33]} 16. Qe1 {[%clk 0:02:09]}  Na4 {[%clk 0:02:33]} 17. Nxa4 {[%clk 0:02:05]}  Rxa4 {[%clk 0:02:34]} 18. Bb2 {[%clk 0:02:03]}  Bd3 {[%clk 0:02:33]} 19. e6 {[%clk 0:01:46]}  f6 {[%clk 0:02:32]} 20. Qc3 {[%clk 0:01:19]}  Bxf1 {[%clk 0:02:32]} 21. Rxf1 {[%clk 0:01:19]}  Qd3 {[%clk 0:02:31]} 22. Qc1 {[%clk 0:01:20]}  Rd8 {[%clk 0:02:29]} 23. Bf3 {[%clk 0:01:19]}  Qd2 {[%clk 0:02:28]} 24. Qa1 {[%clk 0:01:19]}  Qd6 {[%clk 0:02:14]} 25. Rd1 {[%clk 0:00:51]}  Qc7 {[%clk 0:02:14]} 26. h4 {[%clk 0:00:46]}  Rxd1+ {[%clk 0:02:08]} 27. Bxd1 {[%clk 0:00:41]}  Ra7 {[%clk 0:02:08]} 28. h5 {[%clk 0:00:41]}  Qd6 {[%clk 0:02:07]} 29. hxg6 {[%clk 0:00:38]}  hxg6 {[%clk 0:02:08]} 30. Qb1 {[%clk 0:00:38]}  Kg7 {[%clk 0:02:04]} 31. Bc2 {[%clk 0:00:39]}  Qxe6 {[%clk 0:02:01]} 32. Bxg6 {[%clk 0:00:39]}  c3 {[%clk 0:01:55]} 33. Bxc3 {[%clk 0:00:31]}  Nd7 {[%clk 0:01:40]} 34. Bf5 {[%clk 0:00:26]}  Qd6 {[%clk 0:01:40]} 35. Kg2 {[%clk 0:00:21]}  Nf8 {[%clk 0:01:38]} 36. Qh1 {[%clk 0:00:19]}  Rxa3 {[%clk 0:01:36]} 37. Qh5 {[%clk 0:00:13]}  e6 {[%clk 0:01:18]} 38. Qg4+ {[%clk 0:00:11]}  Kf7 {[%clk 0:01:19]} 39. Bb4 {[%clk 0:00:07]}  Qd5+ {[%clk 0:00:53]} 40. e4 {[%clk 0:00:07]}  Qxa2 {[%clk 0:00:53]} 41. Qh5+ {[%clk 0:00:06]}  Kg7 {[%clk 0:00:51]} 42. Qg4+ {[%clk 0:00:05]}  Kf7 {[%clk 0:00:51]} 43. Qh5+ {[%clk 0:00:05]}  Kg7 {[%clk 0:00:51]} 44. Qg4+ {[%clk 0:00:04]}  Kf7 {[%clk 0:00:52]} 1/2-1/2


[Site "https://www.chess.com"]

[Event "Titled Tuesday Blitz January 31 Late 2023"]
[White "Akobian, Varuzhan"]
[Black "Drygalov, Sergey"]
[WhiteFideId "13300580"]
[BlackFideId "24171743"]
[WhiteElo "2591"]
[BlackElo "2547"]
[Result "0-1"]
[Round "03"]
[TimeControl "180+2"]
[Date "2023.01.31"]
[WhiteClock "0:00:01"]
[BlackClock "0:00:06"]

1. d4 {[%clk 0:03:00]}  Nf6 {[%clk 0:03:00]} 2. c4 {[%clk 0:03:00]}  e6 {[%clk 0:03:00]} 3. Nf3 {[%clk 0:02:58]}  d5 {[%clk 0:03:00]} 4. cxd5 {[%clk 0:02:56]}  exd5 {[%clk 0:03:00]} 5. Nc3 {[%clk 0:02:56]}  c6 {[%clk 0:02:59]} 6. Qc2 {[%clk 0:02:56]}  g6 {[%clk 0:02:55]} 7. Bg5 {[%clk 0:02:52]}  Be7 {[%clk 0:02:56]} 8. e3 {[%clk 0:02:52]}  Bf5 {[%clk 0:02:55]} 9. Bd3 {[%clk 0:02:52]}  Bxd3 {[%clk 0:02:56]} 10. Qxd3 {[%clk 0:02:52]}  Nbd7 {[%clk 0:02:56]} 11. O-O {[%clk 0:02:52]}  O-O {[%clk 0:02:57]} 12. Rab1 {[%clk 0:02:52]}  a5 {[%clk 0:02:56]} 13. a3 {[%clk 0:02:51]}  Re8 {[%clk 0:02:56]} 14. b4 {[%clk 0:02:50]}  axb4 {[%clk 0:02:57]} 15. axb4 {[%clk 0:02:49]}  b5 {[%clk 0:02:56]} 16. Qc2 {[%clk 0:02:48]}  Kg7 {[%clk 0:02:37]} 17. Rfc1 {[%clk 0:02:45]}  Nb6 {[%clk 0:02:33]} 18. Ne5 {[%clk 0:02:43]}  Qd6 {[%clk 0:02:31]} 19. Bf4 {[%clk 0:02:17]}  Qe6 {[%clk 0:02:29]} 20. Nd3 {[%clk 0:02:14]}  Nc4 {[%clk 0:02:29]} 21. Ra1 {[%clk 0:02:13]}  Ne4 {[%clk 0:02:29]} 22. h3 {[%clk 0:02:02]}  f6 {[%clk 0:02:19]} 23. Nxe4 {[%clk 0:01:56]}  dxe4 {[%clk 0:02:18]} 24. Nc5 {[%clk 0:01:33]}  Bxc5 {[%clk 0:02:18]} 25. dxc5 {[%clk 0:01:33]}  g5 {[%clk 0:02:11]} 26. Bg3 {[%clk 0:01:31]}  h5 {[%clk 0:02:09]} 27. Rxa8 {[%clk 0:01:24]}  Rxa8 {[%clk 0:02:08]} 28. Rd1 {[%clk 0:01:11]}  h4 {[%clk 0:02:07]} 29. Bd6 {[%clk 0:01:01]}  Ra3 {[%clk 0:02:04]} 30. Rd4 {[%clk 0:00:53]}  f5 {[%clk 0:01:32]} 31. Qd1 {[%clk 0:00:52]}  Kg6 {[%clk 0:01:29]} 32. Bc7 {[%clk 0:00:48]}  Qf6 {[%clk 0:01:01]} 33. Bd8 {[%clk 0:00:44]}  Qe5 {[%clk 0:00:57]} 34. Kh1 {[%clk 0:00:20]}  Ra2 {[%clk 0:00:30]} 35. Kg1 {[%clk 0:00:20]}  Ra8 {[%clk 0:00:25]} 36. Ba5 {[%clk 0:00:15]}  Rf8 {[%clk 0:00:22]} 37. Rd7 {[%clk 0:00:14]}  f4 {[%clk 0:00:21]} 38. Bc7 {[%clk 0:00:12]}  Qf5 {[%clk 0:00:20]} 39. exf4 {[%clk 0:00:11]}  gxf4 {[%clk 0:00:20]} 40. Rd6+ {[%clk 0:00:03]}  Nxd6 {[%clk 0:00:20]} 41. cxd6 {[%clk 0:00:04]}  Qd7 {[%clk 0:00:20]} 42. Qd4 {[%clk 0:00:03]}  Re8 {[%clk 0:00:17]} 43. Bb6 {[%clk 0:00:03]}  Kf5 {[%clk 0:00:12]} 44. Bc5 {[%clk 0:00:03]}  Re5 {[%clk 0:00:12]} 45. Qd1 {[%clk 0:00:02]}  Kg6 {[%clk 0:00:09]} 46. Qd2 {[%clk 0:00:01]}  Kf5 {[%clk 0:00:06]} 47. Qd1 {[%clk 0:00:01]}  Kg5 {[%clk 0:00:06]} 0-1


[Site "https://www.chess.com"]

[Event "Titled Tuesday Blitz January 31 Late 2023"]
[White "Mosadeghpour, Masoud"]
[Black "Erdogdu, Mert"]
[WhiteFideId "12519278"]
[BlackFideId "6301495"]
[WhiteElo "2472"]
[BlackElo "2413"]
[Result "1-0"]
[Round "03"]
[TimeControl "180+2"]
[Date "2023.01.31"]
[WhiteClock "0:02:12"]
[BlackClock "0:00:21"]

1. e4 {[%clk 0:03:00]}  c5 {[%clk 0:02:59]} 2. d4 {[%clk 0:03:00]}  cxd4 {[%clk 0:02:59]} 3. c3 {[%clk 0:03:01]}  dxc3 {[%clk 0:03:00]} 4. Nxc3 {[%clk 0:03:02]}  Nc6 {[%clk 0:03:00]} 5. Nf3 {[%clk 0:03:02]}  d6 {[%clk 0:03:01]} 6. Bc4 {[%clk 0:03:03]}  a6 {[%clk 0:03:01]} 7. O-O {[%clk 0:03:03]}  Nf6 {[%clk 0:03:01]} 8. Be3 {[%clk 0:03:02]}  Bg4 {[%clk 0:03:00]} 9. Qb3 {[%clk 0:03:02]}  Bh5 {[%clk 0:02:40]} 10. Qxb7 {[%clk 0:02:59]}  Na5 {[%clk 0:02:34]} 11. Qb4 {[%clk 0:02:58]}  Nxc4 {[%clk 0:02:33]} 12. Qxc4 {[%clk 0:02:59]}  Bxf3 {[%clk 0:02:29]} 13. gxf3 {[%clk 0:02:57]}  e6 {[%clk 0:02:29]} 14. e5 {[%clk 0:02:51]}  dxe5 {[%clk 0:02:13]} 15. Rfd1 {[%clk 0:02:51]}  Qc8 {[%clk 0:02:06]} 16. Qa4+ {[%clk 0:02:51]}  Nd7 {[%clk 0:02:05]} 17. Rac1 {[%clk 0:02:51]}  Qb7 {[%clk 0:02:05]} 18. Ne4 {[%clk 0:02:48]}  Be7 {[%clk 0:01:48]} 19. Bc5 {[%clk 0:02:47]}  Qb5 {[%clk 0:01:44]} 20. Qxb5 {[%clk 0:02:45]}  axb5 {[%clk 0:01:44]} 21. Bxe7 {[%clk 0:02:45]}  Kxe7 {[%clk 0:01:44]} 22. Rc7 {[%clk 0:02:46]}  Rhd8 {[%clk 0:01:39]} 23. Nc5 {[%clk 0:02:45]}  Rxa2 {[%clk 0:01:33]} 24. Rcxd7+ {[%clk 0:02:29]}  Rxd7 {[%clk 0:01:32]} 25. Rxd7+ {[%clk 0:02:30]}  Ke8 {[%clk 0:01:26]} 26. b3 {[%clk 0:02:30]}  Rc2 {[%clk 0:01:22]} 27. Rc7 {[%clk 0:02:31]}  Rc3 {[%clk 0:01:21]} 28. Nxe6 {[%clk 0:02:28]}  Rxb3 {[%clk 0:01:17]} 29. Nxg7+ {[%clk 0:02:29]}  Kf8 {[%clk 0:01:17]} 30. Nf5 {[%clk 0:02:29]}  f6 {[%clk 0:01:13]} 31. Kg2 {[%clk 0:02:27]}  h5 {[%clk 0:01:13]} 32. Rh7 {[%clk 0:02:26]}  Kg8 {[%clk 0:01:07]} 33. Rxh5 {[%clk 0:02:25]}  Rd3 {[%clk 0:01:05]} 34. Rh6 {[%clk 0:02:23]}  Kf7 {[%clk 0:01:02]} 35. Rh8 {[%clk 0:02:20]}  Ke6 {[%clk 0:00:58]} 36. Ne3 {[%clk 0:02:19]}  b4 {[%clk 0:00:58]} 37. Re8+ {[%clk 0:02:18]}  Kf7 {[%clk 0:00:57]} 38. Rb8 {[%clk 0:02:18]}  b3 {[%clk 0:00:58]} 39. Nc4 {[%clk 0:02:16]}  Kg6 {[%clk 0:00:44]} 40. Na5 {[%clk 0:02:15]}  Rd2 {[%clk 0:00:39]} 41. Nxb3 {[%clk 0:02:15]}  Rb2 {[%clk 0:00:39]} 42. Rb7 {[%clk 0:02:15]}  Kg5 {[%clk 0:00:37]} 43. Nc5 {[%clk 0:02:15]}  Rc2 {[%clk 0:00:37]} 44. Ne4+ {[%clk 0:02:14]}  Kf4 {[%clk 0:00:25]} 45. Nxf6 {[%clk 0:02:13]}  Kf5 {[%clk 0:00:23]} 46. Ne4 {[%clk 0:02:13]}  Kf4 {[%clk 0:00:21]} 47. Rf7# {[%clk 0:02:12]} 1-0


[Site "https://www.chess.com"]

[Event "Titled Tuesday Blitz January 31 Late 2023"]
[White "Predke, Alexandr"]
[Black "Oganian, Miran"]
[WhiteFideId "24107581"]
[BlackFideId "4122488"]
[WhiteElo "2685"]
[BlackElo "2439"]
[Result "0-1"]
[Round "03"]
[TimeControl "180+2"]
[Date "2023.01.31"]
[WhiteClock "0:00:02"]
[BlackClock "0:00:21"]

1. e4 {[%clk 0:02:55]}  e6 {[%clk 0:03:00]} 2. d4 {[%clk 0:02:53]}  d5 {[%clk 0:03:00]} 3. Nc3 {[%clk 0:02:53]}  Bb4 {[%clk 0:02:59]} 4. e5 {[%clk 0:02:52]}  c5 {[%clk 0:02:59]} 5. a3 {[%clk 0:02:53]}  Bxc3+ {[%clk 0:03:00]} 6. bxc3 {[%clk 0:02:54]}  Ne7 {[%clk 0:02:59]} 7. Nf3 {[%clk 0:02:53]}  b6 {[%clk 0:02:56]} 8. c4 {[%clk 0:02:50]}  Ba6 {[%clk 0:02:52]} 9. dxc5 {[%clk 0:02:46]}  bxc5 {[%clk 0:02:51]} 10. Be3 {[%clk 0:02:40]}  d4 {[%clk 0:02:46]} 11. Bd2 {[%clk 0:02:37]}  Nbc6 {[%clk 0:02:47]} 12. Bd3 {[%clk 0:02:37]}  Ng6 {[%clk 0:02:46]} 13. O-O {[%clk 0:02:04]}  Ncxe5 {[%clk 0:02:45]} 14. Nxe5 {[%clk 0:02:02]}  Nxe5 {[%clk 0:02:45]} 15. Qh5 {[%clk 0:02:03]}  Nxd3 {[%clk 0:02:40]} 16. cxd3 {[%clk 0:02:04]}  Qc7 {[%clk 0:02:18]} 17. Rae1 {[%clk 0:01:54]}  O-O {[%clk 0:02:14]} 18. Re5 {[%clk 0:01:53]}  Bb7 {[%clk 0:01:59]} 19. Rxc5 {[%clk 0:01:46]}  Qd7 {[%clk 0:01:58]} 20. Rg5 {[%clk 0:01:31]}  f6 {[%clk 0:01:56]} 21. Rg3 {[%clk 0:01:31]}  e5 {[%clk 0:01:47]} 22. Bh6 {[%clk 0:01:15]}  Rf7 {[%clk 0:01:44]} 23. Rb1 {[%clk 0:01:15]}  Bc6 {[%clk 0:01:40]} 24. h4 {[%clk 0:00:41]}  Re8 {[%clk 0:01:39]} 25. f3 {[%clk 0:00:28]}  Ba4 {[%clk 0:01:13]} 26. Rb2 {[%clk 0:00:27]}  Bc6 {[%clk 0:01:11]} 27. Rb4 {[%clk 0:00:26]}  f5 {[%clk 0:00:53]} 28. Rb2 {[%clk 0:00:11]}  e4 {[%clk 0:00:52]} 29. fxe4 {[%clk 0:00:11]}  fxe4 {[%clk 0:00:53]} 30. Rf2 {[%clk 0:00:10]}  Rxf2 {[%clk 0:00:33]} 31. Kxf2 {[%clk 0:00:05]}  e3+ {[%clk 0:00:30]} 32. Ke1 {[%clk 0:00:04]}  g6 {[%clk 0:00:23]} 33. Qc5 {[%clk 0:00:04]}  Qf7 {[%clk 0:00:21]} 34. Qxd4 {[%clk 0:00:02]}  Qf2+ {[%clk 0:00:20]} 35. Kd1 {[%clk 0:00:02]}  Qd2# {[%clk 0:00:21]} 0-1


[Site "https://www.chess.com"]